Cogmind - Beta 11.1 @@@ ROGUE MODE // 2022.07.11 @ 17:54:01 Player: Sigil Result: Destroyed by H-77 Assassin with Coil Gun Performance ------------- Evolutions (7) 3500 Regions Visited (12) 2400 Robots Destroyed (256) 1280 Value Destroyed (10776) 10776 Prototype IDs (11) 220 Alien Tech Used (0) 0 Bonus (4669) 4669 TOTAL SCORE: 22845 Bonus ------- High Alert Combat Kills 3675 Follower Combat Kills 568 Entered DSFs 500 Aligned with FarCom 300 Friendly Fire -374 Cogmind --------- Core Integrity 0/1300 Matter 19/300 Energy 66/100 System Corruption 25% Temperature Cool (0) Movement Core (50) Location -3/Research Parts ------- > --- POWER (2) -------- (None) > --- PROPULSION (6) --- (None) > --- UTILITY (7) ------ Advanced Signal Interpreter > --- WEAPON (6) ------- (None) > --- INVENTORY (5) ---- Large Storage Unit Improved Force Field Heavy Hardcell Cannon Peak State ------------ > --- POWER ------------ Light Antimatter Reactor Light Quantum Reactor > --- PROPULSION ------- Armored Medium Treads Armored Medium Treads Advanced Heavy Siege Treads Advanced Heavy Siege Treads > --- UTILITY ---------- Advanced Power Amplifier Advanced Cooling System Huge Storage Unit Improved Transmission Jammer Graphene Brace Improved Force Field Authchip [Device] > --- WEAPON ----------- KE Penetrator KE Penetrator KE Penetrator KE Penetrator > --- INVENTORY -------- Light Particle Reactor Medium Treads Improved Medium Treads Improved Medium Treads Improved Medium Treads Improved Medium Treads Armored Medium Treads Advanced Coolant Injector Large Storage Unit Matter Compressor Matter Compressor Advanced Thermal Shield Dispersion Rifle Heavy Flak Cannon Heavy Flak Cannon Micro-nuke Launcher Carbide Saw [Rating: 135] Favorites ----------- Power Improved Deuterium Engine Engine Improved Deuterium Engine Power Core Neutrino Core Reactor Light Quantum Reactor Propulsion Improved Treads Treads Improved Treads Leg Aluminum Leg Hover Unit Improved Gyrokinetic Inverter Flight Unit Diametric Drive Utility Advanced Heat Sink Device Advanced Heat Sink Storage High-capacity Storage Unit Processor Corruption Screen Hackware Hacking Suite Protection Reactive Plating Weapon KE Penetrator Energy Gun Field Laser Energy Cannon Matter Neutralizer Ballistic Gun KE Penetrator Ballistic Cannon Magnetic Acceleration Cannon Launcher Grenade Launcher Special Weapon Mining Laser Slashing Weapon Carbide Saw Build | -11 -10 -10 -10 -9 -8 -7 -7 -6 -5 -4 -4 -3 ------- Run | Scr Mat Min Exi Min Mat Fac DSF Fac Fac Fac Ext Res Slots Evolved 14 | . . . . . 4 2 . 2 2 2 . 2 Power 1 | . . . . . . . . . . 1 . . Propulsion 4 | . . . . . 2 . . 2 . . . . Utility 5 | . . . . . . 2 . . 2 1 . . Weapon 4 | . . . . . 2 . . . . . . 2 Parts Attached 231 | 7 15 10 3 4 11 2 8 16 57 52 12 34 Power 22 | 1 1 . 1 . 1 . 1 2 3 8 1 3 Engine 8 | 1 1 . 1 . 1 . 1 1 2 . . . Core 6 | . . . . . . . . . 1 2 1 2 Reactor 8 | . . . . . . . . 1 . 6 . 1 Propulsion 70 | 2 8 1 . 2 5 . 4 3 14 12 6 13 Treads 61 | . 6 1 . 2 5 . 4 3 14 12 6 8 Leg 4 | 2 2 . . . . . . . . . . . Wheel . | . . . . . . . . . . . . . Hover 4 | . . . . . . . . . . . . 4 Flight 1 | . . . . . . . . . . . . 1 Utility 71 | 2 1 1 . . 2 2 3 9 22 19 3 7 Device 39 | 1 . . . . 1 1 2 2 13 13 3 3 Storage 10 | 1 1 1 . . 1 . . 1 . 3 . 2 Processor 7 | . . . . . . . . 1 1 3 . 2 Hackware 5 | . . . . . . . . 1 4 . . . Protection 10 | . . . . . . 1 1 4 4 . . . Artifact . | . . . . . . . . . . . . . Weapon 68 | 2 5 8 2 2 3 . . 2 18 13 2 11 Energy Gun 8 | . . 2 . . . . . . 4 . . 2 Energy Cannon 2 | . . . . . . . . . . . 1 1 Ballistic Gun 25 | 2 2 3 . 1 2 . . 1 6 6 . 2 Ballistic Cannon 14 | . 2 . . . . . . . 4 3 1 4 Launcher 11 | . . 3 2 . . . . . 2 3 . 1 Special Weapon 4 | . 1 . . 1 1 . . 1 . . . . Impact Weapon . | . . . . . . . . . . . . . Slashing Weapon 4 | . . . . . . . . . 2 1 . 1 Piercing Weapon . | . . . . . . . . . . . . . Special Melee Weapon . | . . . . . . . . . . . . . Unidentified Prototypes 11 | . . . 1 . 1 . . 2 1 2 . 4 Corrupted Parts 1 | . . . . . . . . . . 1 . . System Corruption 1 | . . . . . . . . . . 1 . . Parts Lost 71 | . . 2 . 1 . . . . 24 8 4 32 Power 7 | . . . . . . . . . 1 3 . 3 Propulsion 26 | . . . . . . . . . 10 . 1 15 Utility 16 | . . . . . . . . . 5 4 1 6 Weapon 22 | . . 2 . 1 . . . . 8 1 2 8 Highest Loss Streak 25 | . . 2 . 1 . . . . 9 3 4 25 To Critical Strikes 2 | . . . . . . . . . 1 . . 1 Average Slot Usage (%) 81 | . 100 99 91 83 70 75 76 79 83 75 93 58 Engine 5 | . 14 14 14 14 9 7 7 6 4 . . . Reactor 1 | . . . . . . . . . . 4 6 2 Treads 28 | . 27 28 28 28 35 30 30 39 25 19 26 14 Device 12 | . 14 14 6 . 8 15 12 7 13 21 20 12 Storage 7 | . 14 14 14 14 9 7 7 6 4 3 10 5 Processor 1 | . . . . . . . . . 4 2 . 1 Hackware 2 | . . . . . . . . 3 3 5 5 1 Protection 2 | . . . . . . 6 9 7 3 . . . Energy Gun 1 | . . . . . . . . . 4 . . . Ballistic Gun 9 | . 13 15 13 12 8 7 7 6 8 10 14 2 Ballistic Cannon 3 | . 12 3 . . . . . . 4 1 5 4 Launcher 1 | . . 7 14 11 . . . . . . . . Naked Turns 15 | . . . . . . . . . . . . 15 Heaviest Build 176 | 13 33 34 33 33 65 80 87 85 87 151 155 176 Greatest Support 214 | 20 46 46 43 46 92 89 89 63 195 214 200 181 Greatest Overweight (x) 5 | . . . . . . . 1 1 1 . . 5 Average Overweight (x) . | . . . . . . . . 1 . . . . Largest Inventory Capacity 25 | 8 15 15 15 15 20 20 20 20 20 25 25 25 Average Capacity 18 | 7 14 15 15 15 16 20 20 20 19 17 25 18 Most Carried 25 | 7 15 15 15 15 20 20 20 20 20 21 25 23 Average Carried 16 | 4 12 14 14 15 14 19 19 19 19 9 23 15 Final Capacity 25 | 8 15 15 15 15 20 20 20 20 5 25 25 5 Final Carried 22 | 6 15 15 15 15 20 20 20 20 5 19 22 4 Class Distribution -------------------- 31% | Skirmisher 29% | Tank 24% | Mutant 8% | Scavenger-Tank Dominant Class ---------------- Mutant | -10/Materials Mutant | -10/Mines Mutant | -10/Exiles Mutant | -9/Mines Skirmisher | -8/Materials Tank | -7/Factory Tank | -7/DSF Skirmisher | -6/Factory Skirmisher | -5/Factory Tank | -4/Factory Scavenger-Tank | -4/Extension Scavenger-Tank | -3/Research Resources | -11 -10 -10 -10 -9 -8 -7 -7 -6 -5 -4 -4 -3 ----------- Run | Scr Mat Min Exi Min Mat Fac DSF Fac Fac Fac Ext Res Matter Collected 9627 | 272 243 406 436 51 996 . 267 1065 3609 1485 679 118 Remotely 1834 | . . . . . 923 . 210 . 701 . . . Salvage Created 11858 | 92 262 211 . 159 1125 . 544 934 4644 2428 830 629 Parts 480 | 6 11 19 . 6 56 . 28 46 154 99 27 28 Haulers Intercepted 11 | . 1 . . . 2 . . . 4 3 1 . Recyclers Shooed 8 | . . 1 . . . . . . 3 3 . 1 Parts Field Recycled . | . . . . . . . . . . . . . Retrieved Matter . | . . . . . . . . . . . . . Parts Self-Destructed . | . . . . . . . . . . . . . Prevented . | . . . . . . . . . . . . . Kills | -11 -10 -10 -10 -9 -8 -7 -7 -6 -5 -4 -4 -3 ------- Run | Scr Mat Min Exi Min Mat Fac DSF Fac Fac Fac Ext Res Combat Hostiles Destroyed 194 | . 5 9 . 9 20 . 9 11 71 39 10 11 Melee 9 | . . . . 1 . . . . . 8 . . Guns 121 | . 2 1 . 2 20 . 9 11 41 29 6 . Cannons 34 | . 3 1 . . . . . . 23 . 4 3 AOE 28 | . . 7 . 6 . . . . 6 2 . 7 Classes Destroyed 22 | 2 4 1 . 3 5 . 2 1 2 2 . . Worker 8 | . . 1 . . 1 . . . 3 1 . 2 Builder 10 | . . . . . 1 . . . 2 2 1 4 Tunneler 5 | 1 . . . . . . . . 2 1 . 1 Hauler 11 | . 1 . . . 2 . . . 4 3 1 . Recycler 17 | 1 1 1 . . 1 . . 2 7 2 . 2 Mechanic 3 | . . . . . . . . . 1 2 . . Operator 4 | . . . . 1 1 . . . 2 . . . Watcher 9 | . 2 . . . 1 . . 2 3 . 1 . Swarmer 35 | . 3 3 . . 4 . . . 14 11 . . Cutter 2 | . . . . . . . . . . 2 . . Saboteur 2 | . . . . . . . . . 1 . 1 . Grunt 67 | . 2 6 . 2 11 . 4 5 24 7 2 4 Brawler 4 | . . . . . 1 . . . 1 2 . . Duelist 8 | . . . . . 1 . . 1 3 3 . . Sentry 20 | . . . . . 2 . . 1 11 . 6 . Specialist 5 | . . . . . . . 3 . . 2 . . Hunter 6 | . . . . . 1 . 1 . 2 . . 2 Programmer 34 | . . . . . . . . 4 15 11 . 4 Heavy 1 | . . . . . . . 1 . . . . . Behemoth 3 | . . . . . . . . . . 1 1 1 Zionite 1 | . . . . 1 . . . . . . . . Assembled 7 | . . . . 7 . . . . . . . . Savage 1 | . . . . . . . . . . . 1 . Best Kill Streak 14 | 1 3 3 . 6 6 . 4 3 8 7 4 14 Combat Bots Only 8 | . 3 3 . 6 5 . 4 3 7 7 3 8 Max Kills in Single Turn 4 | 1 1 2 . 4 2 . 1 1 4 3 2 4 Gunslinging 2 | . . . . . . . . . . 2 . . Exploded 4 | . . 2 . 4 . . . . 2 2 . 2 Melee 1 | . . . . 1 . . . . . 1 . . Uniques/NPCs Destroyed . | . . . . . . . . . . . . . Combat | -11 -10 -10 -10 -9 -8 -7 -7 -6 -5 -4 -4 -3 -------- Run | Scr Mat Min Exi Min Mat Fac DSF Fac Fac Fac Ext Res Damage Taken 18459 | . 105 577 . 353 280 . 347 328 5668 3163 1290 6348 Core 2530 | . 50 35 . 102 27 . 92 19 481 345 70 1309 Absorbed by Shields 2998 | . . . . . . . 64 . 493 1314 557 570 Reduced by Siege Mode 655 | . . . . . . . . . 340 206 6 103 Redirected to Shielding 106 | . . . . . . . . . 106 . . . Regen/Repaired (Parts) 496 | . . . . . 154 . . . 342 . . . Core Remaining (%) 73 | 100 . . . 25 95 . 86 97 51 . 63 . Volleys Fired 541 | 6 23 25 . 24 58 . 17 44 224 69 24 27 Largest 6 | 2 2 2 . 1 1 . 1 1 4 4 4 6 Hottest 409 | 40 100 60 . 100 100 . 60 100 211 132 195 409 Shots Fired 1299 | 12 41 43 . 24 58 . 17 44 659 234 86 81 Gun 936 | 12 18 13 . 14 56 . 17 43 479 210 60 14 Cannon 302 | . 18 10 . . . . . . 173 19 26 56 Launcher 48 | . . 20 . 5 . . . . 7 5 . 11 Special 13 | . 5 . . 5 2 . . 1 . . . . Kinetic 1080 | 12 36 23 . 14 56 . 17 43 523 229 83 44 Thermal 166 | . 5 . . 5 2 . . 1 129 . 3 21 Explosive 48 | . . 20 . 5 . . . . 7 5 . 11 Electromagnetic 5 | . . . . . . . . . . . . 5 Robot Hit Streak 33 | 4 6 12 . 7 11 . 11 16 33 21 20 15 Robot Miss Streak 8 | 2 2 2 . 2 8 . 2 4 6 6 4 3 Penetration Max 1 | . . . . . . . . . 1 1 1 1 Secondary Targets 17 | . . . . . . . . . 4 13 . . Max Gunslinging Chain 2 | . . . . . . . . . 1 2 . . Shots Hit Robots 889 | 6 23 20 . 11 52 . 17 39 417 188 55 61 Core Hits 552 | 4 12 22 . 19 41 . 19 31 198 109 39 58 Critical Kills 6 | . . . . . . . . . . 2 2 2 Critical Parts Destroyed 12 | . . . . . . . . . . 2 5 5 Critical Strikes 39 | . . 1 . . . . . . 11 10 7 10 Burn 5 | . . . . . . . . . 5 . . . Meltdown 1 | . . . . . . . . . . . . 1 Destroy 19 | . . . . . . . . . . 5 7 7 Blast 7 | . . 1 . . . . . . 6 . . . Sever 7 | . . . . . . . . . . 5 . 2 Melee Attacks 20 | . . . . . . . . . 3 14 . 3 Impact . | . . . . . . . . . . . . . Slashing 20 | . . . . . . . . . 3 14 . 3 Piercing . | . . . . . . . . . . . . . Sneak Attacks 3 | . . . . . . . . . 1 1 . 1 Combat Hostiles . | . . . . . . . . . . . . . Follow-up Attacks . | . . . . . . . . . . . . . Damage Inflicted 33008 | 63 380 716 . 496 2638 . 902 2383 13324 6659 1608 3839 Guns 20697 | 63 160 113 . 84 2638 . 902 2383 8252 4831 1032 239 Cannons 5560 | . 220 126 . . . . . . 3170 225 540 1279 Explosions 6162 | . . 477 . 404 . . . . 1789 1247 . 2245 Melee 439 | . . . . . . . . . 86 280 . 73 Ramming 150 | . . . . 8 . . . . 27 76 36 3 Kinetic 23364 | 63 380 239 . 84 2638 . 902 2383 9245 5056 1464 910 Thermal 3033 | . . . . . . . . . 2362 . 108 563 Explosive 5977 | . . 477 . 404 . . . . 1604 1247 . 2245 Electromagnetic 45 | . . . . . . . . . . . . 45 Impact . | . . . . . . . . . . . . . Slashing 439 | . . . . . . . . . 86 280 . 73 Piercing . | . . . . . . . . . . . . . Highest Corruption 25 | . . . . . . . . 3 2 25 25 25 Average Corruption 11 | . . . . . . . . 3 1 10 25 8 Corruption Purged 2 | . . . . . . . . . 2 . . . Corruption Blocked 8 | . . . . . . . . 1 7 . . . Effects 110 | . . . . . . . . 2 11 44 45 8 Message Errors 18 | . . . . . . . . . 2 10 3 3 Matter Fused 24 | . . . . . . . . . 1 10 10 3 Heat Flow Errors 16 | . . . . . . . . 2 1 6 7 . Energy Discharges 15 | . . . . . . . . . 2 6 7 . Data Loss (minor) 12 | . . . . . . . . . 1 3 7 1 Data Loss (major) 5 | . . . . . . . . . . 3 1 1 Misfires 7 | . . . . . . . . . 3 3 1 . Alerts 1 | . . . . . . . . . . . 1 . Misdirections 3 | . . . . . . . . . . . 3 . Weapon Failures 9 | . . . . . . . . . 1 3 5 . Overload Shots . | . . . . . . . . . . . . . Overflow Damage 564 | . 10 8 . . . . . . 341 68 13 124 Projectiles 168 | . 10 . . . . . . . 65 . 13 80 Explosions 340 | . . 8 . . . . . . 220 68 . 44 Melee 56 | . . . . . . . . . 56 . . . Knockbacks 68 | . 6 2 . . . . . . 25 13 5 17 Impact 1 | . . . . . . . . . . . 1 . Kinetic 60 | . 5 2 . . . . . . 24 8 4 17 Secondary 7 | . 1 . . . . . . . 1 5 . . Self-Inflicted Damage 442 | . . 64 . 52 . . . . 278 21 . 27 Shots 14 | . . 2 . 2 . . . . 8 1 . 1 Rammed 36 | . . . . 3 . . . . 6 17 1 9 Targets Rammed 44 | . . . . 3 . . . . 6 24 2 9 Kicked . | . . . . . . . . . . . . . Crushed 8 | . . . . . . . . . . 7 1 . Highest Temperature 3775 | . 31 92 . 31 263 . 3775 180 382 219 443 566 Average Temperature 180 | . 13 31 . 9 84 . 941 50 113 90 117 230 Received Heat Transfer 2396 | . 18 276 . 60 90 . 45 93 1229 192 187 206 Effects 44 | . . . . . . . 28 . 6 2 1 7 Shutdowns 10 | . . . . . . . 6 . . . . 4 Energy Bleed 6 | . . . . . . . 3 . 2 . . 1 Interference 12 | . . . . . . . 7 . 3 2 . . Matter Decay 5 | . . . . . . . 3 . . . 1 1 Short Circuit 3 | . . . . . . . 3 . . . . . Damage (minor) 5 | . . . . . . . 3 . 1 . . 1 Damage (major) 2 | . . . . . . . 2 . . . . . Damage (core) 1 | . . . . . . . 1 . . . . . Siege Activations 29 | . . . . . . . . . 17 7 3 2 Total Turns 736 | . . . . . . . . . 446 199 26 65 Longest Duration 85 | . . . . . . . . . 85 64 12 59 Robots Corrupted . | . . . . . . . . . . . . . Combat Hostiles . | . . . . . . . . . . . . . Parts Fried 1 | . . . . . . . . . . . 1 . Impact Corruptions . | . . . . . . . . . . . . . Robots Melted 2 | . . . . . . . . . 1 . . 1 Combat Hostiles 2 | . . . . . . . . . 1 . . 1 Parts Melted 14 | . . . . . . . . . 8 . . 6 Heat Transferred 5273 | . . . . . . . . . 4607 . 111 555 Parts Sabotaged . | . . . . . . . . . . . . . Parts Stolen . | . . . . . . . . . . . . . Parts Stripped . | . . . . . . . . . . . . . Power Chain Reactions . | . . . . . . . . . . . . . Missiles Intercepted . | . . . . . . . . . . . . . Alert | -11 -10 -10 -10 -9 -8 -7 -7 -6 -5 -4 -4 -3 ------- Run | Scr Mat Min Exi Min Mat Fac DSF Fac Fac Fac Ext Res Peak Influence 1940 | 10 109 439 . 143 364 177 397 258 1940 1554 1102 776 Initial 950 | . 6 10 . . 55 161 127 207 39 950 760 519 Average 492 | 4 23 235 . 116 201 164 312 69 757 988 832 579 Maximum Alert Level 5 | . . 2 . . 1 . 1 1 5 4 4 3 Low Security (%) 40 | 100 100 44 . 100 55 100 13 84 22 . . . Level 1 14 | . . 30 . . 44 . 86 15 12 . . . Level 2 8 | . . 24 . . . . . . 12 . . 82 Level 3 25 | . . . . . . . . . 22 82 98 17 Level 4 8 | . . . . . . . . . 19 17 . . Level 5 2 | . . . . . . . . . 10 . . . High Security . | . . . . . . . . . . . . . Max Security . | . . . . . . . . . . . . . Sterilizations 1 | . . . . . . . 1 . . . . . Squads Dispatched 53 | . . . . . 2 . 1 7 22 14 4 3 Investigation 4 | . . . . . . . . . 2 1 . 1 Extermination 17 | . . . . . . . . 5 7 5 . . Reinforcement 12 | . . . . . 2 . 1 1 1 3 2 2 Assault 13 | . . . . . . . . . 6 5 2 . Garrison 7 | . . . . . . . . 1 6 . . . Intercept . | . . . . . . . . . . . . . Searches Triggered . | . . . . . . . . . . . . . Construction Impeded 2 | . . . . . 1 . . . . . . 1 Haulers Reinforced 1 | . . . . . . . . . . . . 1 Active Scanning Responses . | . . . . . . . . . . . . . Cargo Convoy Interrupts . | . . . . . . . . . . . . . Stealth | -11 -10 -10 -10 -9 -8 -7 -7 -6 -5 -4 -4 -3 --------- Run | Scr Mat Min Exi Min Mat Fac DSF Fac Fac Fac Ext Res Distress Signals 7 | . . . . . 3 . . . 2 1 . 1 Communications Jammed 6 | . . . . . . . . . . 6 . . Distress Signals 4 | . . . . . . . . . . 4 . . Times Spotted 299 | . 11 9 . 9 25 . 11 15 108 53 29 29 Peak Tracking Total 14 | . 4 3 . 6 4 . 4 3 11 7 7 14 Tactical Retreats 16 | . . . . . . . 3 . 5 2 . 6 Traps | -11 -10 -10 -10 -9 -8 -7 -7 -6 -5 -4 -4 -3 ------- Run | Scr Mat Min Exi Min Mat Fac DSF Fac Fac Fac Ext Res Traps Triggered 15 | . . . . . . . 3 3 4 3 . 2 Indirectly . | . . . . . . . . . . . . . Trap Hack Attempts . | . . . . . . . . . . . . . Triggered . | . . . . . . . . . . . . . Disarmed . | . . . . . . . . . . . . . Reprogrammed . | . . . . . . . . . . . . . Reused . | . . . . . . . . . . . . . Traps Extracted . | . . . . . . . . . . . . . Installed . | . . . . . . . . . . . . . Triggered . | . . . . . . . . . . . . . Exploded 2 | . . . 2 . . . . . . . . . Machines | -11 -10 -10 -10 -9 -8 -7 -7 -6 -5 -4 -4 -3 ---------- Run | Scr Mat Min Exi Min Mat Fac DSF Fac Fac Fac Ext Res Machines Disabled 28 | . 1 3 . . 2 . 1 3 14 2 2 . Max in Single Turn 3 | . 1 1 . . 1 . 1 1 3 1 . . Garrison Access 1 | . . . . . . . . . 1 . . . Energy Cycler 1 | . . . . . . . . . . . 1 . Machines Sabotaged . | . . . . . . . . . . . . . Garrisons Compromised . | . . . . . . . . . . . . . Overloaded Fab Kills . | . . . . . . . . . . . . . Hacking | -11 -10 -10 -10 -9 -8 -7 -7 -6 -5 -4 -4 -3 --------- Run | Scr Mat Min Exi Min Mat Fac DSF Fac Fac Fac Ext Res Machines Accessed 43 | . 5 . . 1 6 2 . 5 13 3 6 2 Terminals 36 | . 5 . . 1 5 2 . 5 11 1 6 . Fabricators 2 | . . . . . . . . . . 1 . 1 Repair Stations 3 | . . . . . 1 . . . 1 1 . . Recycling Units . | . . . . . . . . . . . . . Scanalyzers 2 | . . . . . . . . . 1 . . 1 Garrison Access . | . . . . . . . . . . . . . Total Hacks 93 | . 14 . . 3 18 2 . 8 30 6 9 3 Successful 44 | . 8 . . 1 8 2 . 3 13 5 3 1 Failed 49 | . 6 . . 2 10 . . 5 17 1 6 2 Catastrophic 12 | . 1 . . 1 3 . . 1 4 . 2 . Database Lockouts . | . . . . . . . . . . . . . Manual 63 | . 14 . 1 2 11 1 . 7 25 1 1 . Terminals 73 | . 14 . . 3 11 2 . 8 25 1 9 . Fabricators 5 | . . . . . . . . . . 3 . 2 Repair Stations 11 | . . . . . 7 . . . 2 2 . . Recycling Units . | . . . . . . . . . . . . . Scanalyzers 4 | . . . . . . . . . 3 . . 1 Garrison Access . | . . . . . . . . . . . . . Terminal Hacks 13 | . . . . 1 2 1 . 2 3 1 3 . Part Schematic 3 | . . . . . 1 . . . 2 . . . Open Door 4 | . . . . . . . . . . 1 3 . Open DSF 2 | . . . . . . 1 . 1 . . . . Branch Access Points 1 | . . . . . 1 . . . . . . . Terminal Index 2 | . . . . . . . . 1 1 . . . Zone Layout 1 | . . . . 1 . . . . . . . . Fabricator Hacks 4 | . . . . . . . . . . 3 . 1 Load Schematic 2 | . . . . . . . . . . 1 . 1 Build 2 | . . . . . . . . . . 2 . . Repair Station Hacks 8 | . . . . . 5 . . . 2 1 . . Scan Component 5 | . . . . . 3 . . . 1 1 . . Repair 3 | . . . . . 2 . . . 1 . . . Recycling Unit Hacks . | . . . . . . . . . . . . . Scanalyzer 2 | . . . . . . . . . 2 . . . Insert Component 1 | . . . . . . . . . 1 . . . Analyze 1 | . . . . . . . . . 1 . . . Garrison Access Hacks . | . . . . . . . . . . . . . Unauthorized Hacks 17 | . 8 . . . 1 1 . 1 6 . . . Terminals 17 | . 8 . . . 1 1 . 1 6 . . . Assimilate 5 | . 3 . . . 1 . . . 1 . . . Botnet 10 | . 4 . . . . . . 1 5 . . . Operators 2 | . 1 . . . . 1 . . . . . . Fabricators . | . . . . . . . . . . . . . Repair Stations . | . . . . . . . . . . . . . Recycling Units . | . . . . . . . . . . . . . Scanalyzers . | . . . . . . . . . . . . . Garrison Access . | . . . . . . . . . . . . . Data Cores Recovered 2 | . . . . . 1 . . . 1 . . . Used . | . . . . . . . . . . . . . Hacking Detections 38 | . 5 . . 1 6 1 . 4 13 2 4 2 Full Trace Events 1 | . . . . . . . . . 1 . . . Feedback Events . | . . . . . . . . . . . . . Feedback Blocked . | . . . . . . . . . . . . . Robot Schematics Acquired . | . . . . . . . . . . . . . Robots Built . | . . . . . . . . . . . . . Authchips . | . . . . . . . . . . . . . Time . | . . . . . . . . . . . . . Total Robot Build Rating . | . . . . . . . . . . . . . Part Schematics Acquired 4 | . . . . . 1 . . . 3 . . . Parts Built 4 | . . . . . . . . . . 4 . . Authchips 2 | . . . . . . . . . . 2 . . Time 122 | . . . . . . . . . . 122 . . Total Part Build Rating 30 | . . . . . . . . . . 30 . . Parts Repaired 3 | . . . . . 2 . . . 1 . . . Time 104 | . . . . . 76 . . . 28 . . . Parts Recycled . | . . . . . . . . . . . . . Recycled Matter . | . . . . . . . . . . . . . Retrieved Matter . | . . . . . . . . . . . . . Retrieved Components . | . . . . . . . . . . . . . Parts Scanalyzed 1 | . . . . . . . . . 1 . . . Part Schematics Acquired 1 | . . . . . . . . . 1 . . . Parts Damaged . | . . . . . . . . . . . . . Bothacking | -11 -10 -10 -10 -9 -8 -7 -7 -6 -5 -4 -4 -3 ------------ Run | Scr Mat Min Exi Min Mat Fac DSF Fac Fac Fac Ext Res Used RIF Installer . | . . . . . . . . . . . . . Robots Hacked . | . . . . . . . . . . . . . Non-combat . | . . . . . . . . . . . . . Combat . | . . . . . . . . . . . . . Robot Hacks Applied . | . . . . . . . . . . . . . Relay Couplers Released 1 | . . . . . . . . . 1 . . . Machine Destruction 1 | . . . . . . . . . 1 . . . Fabnet Peak Effective % . | . . . . . . . . . . . . . Robots Rewired 11 | . . . . . . . . . . . 11 . Allies Hacked . | . . . . . . . . . . . . . Hacks Repelled . | . . . . . . . . . . . . . Allies | -11 -10 -10 -10 -9 -8 -7 -7 -6 -5 -4 -4 -3 -------- Run | Scr Mat Min Exi Min Mat Fac DSF Fac Fac Fac Ext Res Total Allies 18 | . 2 . . . 1 . . . 1 . 14 . Largest Group 7 | . 2 2 2 2 1 . . . 1 . 7 . Highest-Rated Group 432 | . 20 20 20 20 10 . . . 10 . 432 . Highest-Rated Ally 159 | . 10 10 10 10 10 . . . 10 . 159 . Total Orders 8 | . . . . . . . . . . . 8 . STAY 4 | . . . . . . . . . . . 4 . FOLLOW 4 | . . . . . . . . . . . 4 . Ally Attacks 75 | . . . . . . . . . . . 75 . Total Damage 3935 | . . . . . . . . . . . 3935 . Kills 14 | . . . . . . . . . . . 14 . Allies Corrupted 1 | . . . . . . . . . . . 1 . Allies Melted . | . . . . . . . . . . . . . Intel | -11 -10 -10 -10 -9 -8 -7 -7 -6 -5 -4 -4 -3 ------- Run | Scr Mat Min Exi Min Mat Fac DSF Fac Fac Fac Ext Res Robot Analysis Total . | . . . . . . . . . . . . . Derelict Logs Recovered 2 | . . 1 . 1 . . . . . . . . Drone Launches . | . . . . . . . . . . . . . Drone Recoveries . | . . . . . . . . . . . . . Exploration | -11 -10 -10 -10 -9 -8 -7 -7 -6 -5 -4 -4 -3 ------------- Run | Scr Mat Min Exi Min Mat Fac DSF Fac Fac Fac Ext Res Turns Passed 13573 | 114 1087 517 394 213 1013 144 489 2515 3863 1851 841 532 Spaces Moved 6285 | 59 537 261 238 91 491 85 200 973 1745 887 382 336 Core 577 | 6 . . . . . . . . 212 274 . 85 Treads 5496 | . 532 261 238 91 491 85 200 973 1533 613 382 97 Legs 58 | 53 5 . . . . . . . . . . . Wheels . | . . . . . . . . . . . . . Hover 40 | . . . . . . . . . . . . 40 Flight 114 | . . . . . . . . . . . . 114 Fastest Speed 30 | 50 120 160 160 160 160 160 160 243 50 50 157 30 Average Speed 162 | 112 159 160 160 160 160 160 190 243 150 128 159 80 Slowest Speed 560 | 120 160 160 160 160 160 160 246 245 246 170 160 560 Overloaded Moves . | . . . . . . . . . . . . . Propulsion Burnouts . | . . . . . . . . . . . . . Robots Hopped 6 | . . . . . . . . . . . . 6 Cave-ins Triggered . | . . . . . . . . . . . . . Time Travels 1 | . . . 1 . . . . . . . . . Exploration Rate (%) 38 | 6 65 69 63 23 35 4 90 26 37 21 39 19 Regions Visited 12 Branch Regions 4 Pre-discovered Areas 1 | . . . . 1 . . . . . . . . Known Exits Taken 1 | . . . . . . 1 . . . . . . Unknown Exits Taken 10 | 1 1 1 1 1 1 . . 1 1 1 1 . Scrap Searched 3 | . . 2 . 1 . . . . . . . . Spaces Dug 55 | . 5 . . 5 2 . . 5 35 . . 3 Terrain Destroyed 564 | . 5 76 . 36 51 . . 12 230 77 19 58 Melee . | . . . . . . . . . . . . . Projectile 209 | . 5 . . 5 51 . . 12 84 24 19 9 AOE 354 | . . 76 . 31 . . . . 146 52 . 49 Terrain Rammed . | . . . . . . . . . . . . . Walls Destroyed . | . . . . . . . . . . . . . Machines Disabled . | . . . . . . . . . . . . . Actions | -11 -10 -10 -10 -9 -8 -7 -7 -6 -5 -4 -4 -3 --------- Run | Scr Mat Min Exi Min Mat Fac DSF Fac Fac Fac Ext Res Total 8926 | 95 715 318 254 124 717 94 312 1121 2718 1380 557 521 Wait 1470 | 15 116 11 6 3 130 2 63 65 610 305 39 105 Move 6261 | 58 536 260 237 90 490 84 199 972 1744 886 381 324 Hop 6 | . . . . . . . . . . . . 6 Pick Up 130 | 9 15 4 2 . 17 4 8 8 32 18 11 2 Fast Attach 90 | 4 . 4 . 1 3 . . 9 21 28 5 15 Attach 63 | 3 . 2 2 . 6 2 . 3 15 10 3 17 Detach 15 | . . 2 . . 1 . . . 4 6 . 2 Swap 78 | . 15 4 1 3 2 . 8 4 21 14 4 2 Drop 121 | . 10 6 6 . 10 2 11 12 38 6 11 9 Fire 541 | 6 23 25 . 24 58 . 17 44 224 69 24 27 Melee 20 | . . . . . . . . . 3 14 . 3 Ram 5 | . . . . . . . . . 5 . . . Kick . | . . . . . . . . . . . . . Crush 39 | . . . . 3 . . . . 1 24 2 9 Escape Stasis 10 | . . . . . . . 6 4 . . . . Rewire 77 | . . . . . . . . . . . 77 . Trap . | . . . . . . . . . . . . . Miscellaneous . | . . . . . . . . . . . . . Route ------- -11/Scrapyard -10/Materials (discovered 3 exits: [*Mat x2] / [*Min]) -10/Mines (discovered 2 exits: [*Mat] / *Exi) -10/Exiles (discovered 2 exits: *Min x2) -9/Mines -8/Materials -7/Factory -7/DSF -6/Factory (discovered 3 exits: *Fac x2 / [*Low]) -5/Factory -4/Factory -4/Extension -3/Research History --------- Turn | Location | Event 2 | -11/Scrapyard | Discovered new exit (range 16) 115 | -11/Scrapyard | Entered Materials 317 | -10/Materials | Build established: Mutant 327 | -10/Materials | Discovered new exit (range 9) 447 | -10/Materials | Discovered new exit (range 11) 639 | -10/Materials | Discovered new exit (range 4) 1202 | -10/Materials | Entered Mines 1202 | -10/Mines | Accompanied by 2 allies 1253 | -10/Mines | Learned 2 Materials zone layouts 1256 | -10/Mines | Received a Rocket Launcher from a helpful Derelict 1277 | -10/Mines | Discovered new exit (range 11) 1703 | -10/Mines | Deemed a non-threat by the Exiles lab entrance 1703 | -10/Mines | Discovered new exit (range 5) 1719 | -10/Mines | Entered Exiles 1719 | -10/Exiles | Accompanied by 2 allies 1740 | -10/Exiles | Discovered new exit (range 15) 1761 | -10/Exiles | Met 8R-AWN 1787 | -10/Exiles | Met EX-HEX 1831 | -10/Exiles | Met EX-BIN 1860 | -10/Exiles | Aligned with FarCom system 1862 | -10/Exiles | Given EX-Vault access code 1899 | -10/Exiles | Opened EX-Vault 1910 | -10/Exiles | Found Prototype Device 1910 | -10/Exiles | Identified Chronowheel 1910 | -10/Exiles | Activated Chronowheel 1910 | -10/Exiles | Spacetime reconverged on an earlier point 1916 | -10/Exiles | Found Prototype Ballistic Gun 1949 | -10/Exiles | Warned to stay clear of 0b10 Research branches 1971 | -10/Exiles | Exiles lab attacked by MAIN.C 2093 | -10/Exiles | Discovered new exit (range 10) 2113 | -10/Exiles | Left Exiles lab with XL Autogun Array 2113 | -10/Exiles | Entered Mines 2113 | -9/Mines | Accompanied by 2 allies 2114 | -9/Mines | Assembled infested the area 2118 | -9/Mines | Core integrity fell below 50% 2313 | -9/Mines | Discovered new exit (range 5) 2326 | -9/Mines | Entered Materials 2326 | -8/Materials | Accompanied by 1 ally 2326 | -8/Materials | Evolved 4 slots: Propulsion x2, Weapon x2 2330 | -8/Materials | Identified XL Autogun Array 2836 | -8/Materials | Build established: Skirmisher 3040 | -8/Materials | Discovered new exit (range 7) 3109 | -8/Materials | Repaired Imp. Treads 3154 | -8/Materials | Repaired Broken Imp. Treads 3339 | -8/Materials | Entered Factory 3339 | -7/Factory | Evolved 2 slots: Utility x2 3483 | -7/Factory | Identified exit to DSF 3483 | -7/Factory | Entered DSF 3530 | -7/DSF | Additional patrols routed to DSF 3638 | -7/DSF | Build established: Tank 3771 | -7/DSF | Sterilization system engaged 3791 | -7/DSF | Ambient heat levels rising (+10) 3799 | -7/DSF | Discovered new exit (range 15) 3806 | -7/DSF | Ambient heat levels rising (+10) 3821 | -7/DSF | Ambient heat levels rising (+10) 3836 | -7/DSF | Ambient heat levels rising (+10) 3851 | -7/DSF | Ambient heat levels rising (+10) 3866 | -7/DSF | Ambient heat levels rising (+10) 3881 | -7/DSF | Ambient heat levels rising (+10) 3896 | -7/DSF | Ambient heat levels rising (+10) 3911 | -7/DSF | Ambient heat levels rising (+10) 3926 | -7/DSF | Ambient heat levels rising (+10) 3941 | -7/DSF | Ambient heat levels rising (+10) 3956 | -7/DSF | Ambient heat levels rising (+10) 3971 | -7/DSF | Ambient heat levels rising (+10) 3972 | -7/DSF | Entered Factory 3972 | -6/Factory | Evolved 2 slots: Propulsion x2 5388 | -6/Factory | Build established: Skirmisher 5965 | -6/Factory | Discovered new exit (range 14) 6251 | -6/Factory | Discovered new exit (range 6) 6431 | -6/Factory | Discovered new exit (range 4) 6436 | -6/Factory | Garrison activated, responded to threat 6487 | -6/Factory | Entered another Factory area 6487 | -5/Factory | Evolved 2 slots: Utility x2 6664 | -5/Factory | Garrison activated, responded to threat 6797 | -5/Factory | Build established: Tank 7674 | -5/Factory | Build established: Skirmisher 8287 | -5/Factory | First assault squad dispatched 8748 | -5/Factory | Lost 5 parts (2n1u2w) 9269 | -5/Factory | Discovered new exit (range 12) 9450 | -5/Factory | Repaired Hvy. Treads 9585 | -5/Factory | Build established: Tank 9815 | -5/Factory | Garrison activated, responded to threat 9986 | -5/Factory | Destroyed 7 combat bots 10171 | -5/Factory | Garrison activated, responded to threat 10180 | -5/Factory | Lost 4 parts (2n1u1w) 10270 | -5/Factory | Lost 9 parts (1p4n1u3w) 10350 | -5/Factory | Entered another Factory area 10350 | -4/Factory | Evolved 2 slots: Power x1, Utility x1 10498 | -4/Factory | Build established: Mutant 10534 | -4/Factory | Fabricated Adv. Heavy Siege Treads (x2) 10595 | -4/Factory | Fabricated Arm. Medium Treads (x2) 11021 | -4/Factory | Found Prototype Processor 11082 | -4/Factory | Identified Exp. Melee Analysis Suite 11265 | -4/Factory | System corruption reached 10% 11350 | -4/Factory | First assault squad dispatched 11575 | -4/Factory | Build established: Tank 11624 | -4/Factory | Discovered new exit (range 5) 11890 | -4/Factory | Spotted B-86 Titan 11914 | -4/Factory | Destroyed 7 combat bots 11918 | -4/Factory | Destroyed B-86 Titan 12169 | -4/Factory | Lost 3 parts (1p1u1w) 12201 | -4/Factory | Entered Extension 12569 | -4/Extension | Rescued a captive Derelict 12575 | -4/Extension | Build established: Scavenger-Tank 12675 | -4/Extension | Rescued A7 12701 | -4/Extension | First assault squad dispatched 12836 | -4/Extension | Energy Cycler disabled 12836 | -4/Extension | Rescued a captive Derelict 12837 | -4/Extension | Rescued a captive Derelict 12839 | -4/Extension | Rescued a captive Derelict 12839 | -4/Extension | Rescued a captive Derelict 12840 | -4/Extension | Rescued a captive Derelict 12841 | -4/Extension | Rescued a captive Derelict 12844 | -4/Extension | Rescued a captive Derelict 12855 | -4/Extension | Rescued a captive Derelict 12964 | -4/Extension | Spotted B-86 Titan 12972 | -4/Extension | Spotted B-86 Titan 12979 | -4/Extension | Extracted ID and sensor layout for unrecognized location from A7's data core 12979 | -4/Extension | Discovered new exit (range 14) 12991 | -4/Extension | Allies destroyed B-86 Titan 13017 | -4/Extension | Destroyed B-86 Titan 13027 | -4/Extension | Lost 4 parts (1n1u2w) 13039 | -4/Extension | P-70 Sage assimilated allied 0W-AXF(h) 13042 | -4/Extension | Entered Research 13042 | -3/Research | Evolved 2 slots: Weapon x2 13288 | -3/Research | Spotted B-86 Titan 13379 | -3/Research | Destroyed B-86 Titan 13400 | -3/Research | Destroyed 8 combat bots 13405 | -3/Research | Released all parts (9) 13436 | -3/Research | Lost 25 parts (3p10n5u7w) 13471 | -3/Research | Core integrity fell below 50% 13471 | -3/Research | System corruption reached 10% 13571 | -3/Research | Core integrity fell below 20% 13574 | -3/Research | Destroyed by H-77 Assassin with Coil Gun Last Messages --------------- 13568_ Slug penetrates Wall. 13568_ R-10 Processor destroyed. 13569_ P-80 Master resets H-77 Assassin, system corruption cleaned. 13569_ Slug penetrates Wall. 13569_ Penetrated by Slug. 13570_ H-77 Assassin Myomer Leg severed. 13570_ Penetrated by Slug. 13570_ Slug penetrates P-80 Master. 13570_ R-10 Processor destroyed. 13571_ Hvy. Treads destroyed. 13572_ Slug penetrates H-77 Assassin. 13572_ Slug penetrates Wall. 13573_ Sneak attack on R-10 Processor. 13573_ Carbide Saw destroyed. 13573_ P-80 Master resets H-77 Assassin, system corruption cleaned. 13573_ Penetrated by Slug. 13573_ Slug penetrates R-10 Processor. 13573_ Penetrated by Slug. 13573_ Slug penetrates R-10 Processor. 13574_ Slug penetrates Wall. Map ----- +----------------------------------------------------+ | ???????????????### ###############????? | | ???????????????#"" + +? ? | | ???????????????#"" """ """ ###### ######??? ? | | ???????????????#"" """ """ #????# #####???? ? | | ???????????????#S """ """ #????# #???? ? | | ???????????????#"" #????# #??? ? | | ???????????????#"" #????# #???#+# | | ???????????????#"" """ """ #????# ##### | | ???????????????### """ """ + | | ?????????????????# """ """ ################## | | ?????????????????# #???# # | | ?????????????????# ] #???# # | | ?????????????????###+##+#######???# # | | ???????????????????# #?????????# # | | ???????????????????# #?????????# # | | ???????????????????# #?????????# + | | ???????????????????# ########### # | | ???????????????????# # = # # | | ???????????????????# # # # | | ????????????######## # "" # # | | ????????????+ # """#! # | | ????????????# # "# # | | ?????????#### # ############## | | ???????? w # #????????????# | | ???????? # h** #????????????# | | ???????? R /@*h%%h #????????????### | | ???????? #!=p!! h ######?????????? | | ?????????#####+##########gph=!hY + #???????? | | ????????????????????????#===!! ######?????????? | | ????????????????????????# =!! #??????????????? | | ????????????????????????# #??????????????? | | ????????????????????????# #??????????????? | | ????????????????????????# #??????????????? | | ??????????#########?????###########??????????????? | | ??????????# ?????# #?????????????????? | | ??????????# ??????# #????????????????## | | ########### """" ??????# !#????????????????# | | # "F "???????# #????????????????# | | # ???????# #?????###????????# | | ? ????????# ####### #####????# | | # ???########+#### #????# | | #? ????+ / #???### | | " """ #? ????# # #???# | | " """ ###+###### # #???# | | " """ # " ##### | | # """" / | | / """" ######+ | | # """" #?????? | | " ########## # T##### """" #?????? | | " """ ########## ####???# #?????? | +----------------------------------------------------+ Best States ------------- Heat Dissipation 74 Coolant Potential 100 Energy Generation 54 Energy Capacity 605 Matter Stores 550 Matter Capacity 550 Sight Range 16 Terrain Scan Range 16 Terrain Scan Density 10 Jamming Range 14 Power Amplification 60 EM Shielding 3 Corruption Block 8 Armor Coverage 450 Resistance: KI 25 Resistance: TH 30 Resistance: EX 50 Weapon Shielding 66 Evasion (%) 64 Targeting Accuracy 6 Melee Accuracy 5 Armor Integrity Analysis 30 Recoil Reduction 6 Matter Filtering 30 Kinecelleration 30 Offensive Hacking 10 Authchip Count 4 Item Schematics ----------------- Arm. Treads | -8/Materials | Hacked Arm. Medium Treads | -5/Factory | Scanalyzed Force Field | -5/Factory | Hacked Hvy. Treads | -5/Factory | Hacked Robot Schematics ------------------ None Fabricated ------------ Adv. Heavy Siege Treads | x2 | -4/Factory | Preloaded, Authchip Arm. Medium Treads | x2 | -4/Factory | Authchip Alien Tech Used ----------------- None Achievements -------------- Gunslinger Tank Challenges ------------ None Game ------ Seed StormCoordinationLauncher Manual? 0 Play Time 03:07:45 Cumulative 59.7 hours Start 2022.07.10 @ 23:25:44 End 2022.07.11 @ 17:54:01 Sessions 3 Manual Loads 0 Difficulty Rogue Special Mode None Game No. 44 Rogue 44 Adventurer 0 Explorer 0 Win Type - Total 0 Types 0/0/0/0/0/0/0/0/0 Lore% 43 Gallery% 51 Achievement% 47 Wizard Run 0 Options --------- ASCII 0 Keyboard 0 Movement Numpad Keybinds 0 Fullscreen 1 Font 36/Smallcaps Map View 76x50 Tactical HUD 1 Map Filters NONE Filters NONE Steam 1 RUN: b9f6efb0-84f2-4a47-a814-12c752bf105e